bitfinex/quotes_ETHUSD_20220202
["timestamp","ask_amount","ask_price","bid_price","bid_amount"]
[1643827771972,0.0658547,2684.1,2683.9,0.91980646]
[1643827773030,0.06585981,2684.1,2683.9,0.91980646]
[1643827773230,0.06585981,2684.1,2683.8,1.0899]
[1643827773425,0.06585981,2684.1,2683.8,0.9037]
[1643827773825,0.06585981,2684.1,2683.7,3.2024]
[1643827774228,0.06585981,2684.1,2683.9,0.74446908]
[1643827774424,0.06599672,2684.1,2683.9,0.74446908]
[1643827775428,0.06599667,2684.1,2683.9,0.74446908]
[1643827776027,0.06599667,2684.1,2683.7,3.2024]
[1643827776485,0.06085894,2684.1,2683.7,3.2024]
[1643827776682,0.06584468,2684.1,2683.7,3.2024]
[1643827777281,0.06584468,2684.1,2684.0,0.87014558]
[1643827777782,0.06085894,2684.1,2684.0,0.87014558]
[1643827778682,0.24047794,2684.5,2684.0,0.87014558]
[1643827778886,0.06085894,2684.5,2684.0,0.87014558]
[1643827779085,0.00530688,2684.2,2684.0,1.80152558]
[1643827779982,0.00530688,2684.2,2684.0,2.73290558]
[1643827780224,0.06085894,2684.5,2684.0,2.73290558]
[1643827780424,0.00546824,2684.2,2684.0,2.73290558]
[1643827780923,0.00546824,2684.2,2684.1,4.6362]
[1643827781522,0.00529078,2684.2,2684.1,4.6362]
[1643827782323,0.00529078,2684.2,2684.1,4.45]
[1643827782522,0.00529078,2684.2,2684.0,0.87014558]
[1643827782722,0.00529074,2684.3,2684.0,0.87014558]
[1643827783526,0.0609478,2684.2,2684.0,0.87014558]
[1643827784276,0.0609478,2684.2,2683.9,0.1862]
[1643827784478,1.57944176,2684.1,2683.9,0.1862]
[1643827784674,2.16800025,2684.0,2683.9,0.1862]
[1643827784876,3.74744201,2684.0,2683.9,0.1862]
[1643827785273,3.90421044,2684.0,2683.9,0.1862]
[1643827786473,1.91582919,2684.0,2683.9,0.1862]
[1643827786873,3.90043534,2684.0,2683.9,0.1862]
[1643827787721,1.91582919,2684.0,2683.4,0.80763536]
[1643827787925,1.95066045,2683.9,2683.4,0.80763536]
[1643827788123,0.33638743,2684.0,2683.4,0.80763536]
[1643827788324,1.5795982,2683.9,2683.4,0.80763536]
[1643827788628,0.00553904,2683.8,2683.4,0.80763536]
[1643827789627,0.32922445,2683.8,2683.4,0.80763536]
[1643827789824,0.00553899,2683.8,2683.4,0.80763536]
[1643827791130,0.00543513,2683.8,2683.4,0.80763536]
[1643827791981,0.24038906,2684.0,2683.4,0.80763536]
[1643827792181,0.00507303,2683.8,2683.4,0.80763536]
[1643827792991,0.00507303,2683.8,2683.4,1.73922536]
[1643827793186,0.00507303,2683.8,2683.4,2.22542536]
[1643827793385,0.00507303,2683.8,2683.4,3.44932536]
[1643827793585,0.0605034,2683.7,2683.4,3.44932536]
[1643827794586,2.30077162,2684.4,2684.0,0.79750679]
[1643827794793,1.57936491,2684.3,2683.5,2.8]
[1643827794986,1.57936491,2684.3,2683.7,0.9316]
[1643827795826,1.57936491,2684.3,2683.7,1.71589211]
[1643827796027,1.57936491,2684.3,2683.4,1.7101]
[1643827796431,1.57936491,2684.3,2683.4,2.64175]
[1643827796432,1.97271268,2684.2,2683.4,2.64175]
[1643827796628,1.57936491,2684.1,2683.4,2.64175]
[1643827797027,1.57936491,2684.0,2683.7,0.79574937]
[1643827797228,2.24774451,2684.4,2683.4,2.34175]
[1643827797429,1.75907801,2684.3,2683.4,1.4101]
[1643827797628,1.57945901,2684.2,2683.4,1.4101]
[1643827797829,1.57945901,2684.2,2683.5,0.93165]
[1643827798030,2.13725953,2684.1,2683.4,1.4101]
[1643827798231,1.57945901,2684.0,2683.4,1.22633776]
[1643827798432,0.19481455,2683.7,2683.1,3.0057]
[1643827798636,0.19481455,2683.7,2683.0,0.00975253]
[1643827798637,1.76305426,2683.6,2683.0,0.00975253]
[1643827798829,2.48270893,2683.5,2683.0,0.00975253]
[1643827799083,1.57945901,2683.4,2683.0,0.00975253]
[1643827799281,2.12083333,2683.3,2683.0,0.00975253]
[1643827799479,3.5651621,2683.2,2682.7,3.0488]
[1643827799679,2.14419491,2683.1,2682.5,0.73475194]
[1643827799880,0.18458707,2683.1,2682.5,2.59854194]
[1643827800281,2.30918091,2683.3,2682.5,2.59854194]
[1643827800483,1.57988359,2683.2,2682.5,2.59854194]
[1643827801283,0.1862,2683.4,2682.7,0.18673768]
[1643827801484,1.57983138,2683.3,2682.7,1.11864768]
[1643827801786,0.1905939,2683.5,2683.1,0.71708206]
[1643827802089,0.1776939,2683.5,2683.2,2.02619047]
[1643827802283,1.11987983,2684.5,2683.1,1.02936511]
[1643827802284,0.1862,2683.9,2683.1,1.02936511]
[1643827802482,3.54590738,2684.6,2683.1,1.02936511]
[1643827802483,0.1862,2684.4,2683.2,3.53953878]
[1643827802736,1.5794592,2684.3,2683.3,2.2106]
[1643827802927,0.1862,2684.2,2683.8,0.74925476]
[1643827803228,1.5794592,2684.1,2683.6,0.93158]
[1643827803428,0.1862,2684.4,2683.6,0.93158]
[1643827803429,1.5794592,2684.0,2683.6,0.93158]
[1643827803629,1.5794592,2683.9,2683.8,0.93159]
[1643827803826,0.1862,2684.4,2683.8,0.93159]
[1643827803827,1.5794592,2684.3,2683.8,0.93159]
[1643827804028,0.1862,2684.4,2683.8,0.93159]
[1643827804029,1.5794592,2684.2,2683.8,0.93159]
[1643827804229,0.1862,2684.4,2683.4,4.0639]
[1643827804230,1.5794592,2684.1,2683.4,4.0639]
[1643827804431,0.00563206,2683.9,2683.6,0.92980297]
[1643827804627,1.5794592,2683.8,2683.6,0.92980297]
[1643827805427,1.5794592,2683.8,2683.6,1.86141297]
[1643827805631,0.00563215,2683.8,2683.7,4.75]
[1643827805830,0.00563215,2683.8,2683.7,7.33606]
[1643827806131,0.00563215,2683.8,2683.7,8.33606]
[1643827806579,3.215e-05,2683.8,2683.7,9.33605999]
[1643827806782,0.00563211,2683.9,2683.7,9.33605999]
[1643827806983,3.211e-05,2683.9,2683.8,7.51273797]
[1643827807187,7.800919,2685.7,2683.9,5.5]
[1643827807188,0.89146782,2685.5,2683.9,5.5]
[1643827807382,0.70526782,2685.5,2684.6,1.86225]
[1643827807583,0.70526782,2685.6,2684.6,1.86225]
[1643827807782,0.1862,2685.5,2684.6,3.16225]
[1643827808179,0.1862,2685.7,2685.3,0.93360485]
[1643827808380,0.1862,2685.7,2685.1,0.93107]
[1643827808580,0.186,2685.8,2685.1,1.8173922]
[1643827809380,0.186,2685.8,2685.2,1.86186]
[1643827809584,0.73142407,2685.9,2685.5,0.18278748]
[1643827809998,1.43669189,2685.9,2685.5,0.18278748]
[1643827810631,1.43669189,2685.9,2685.5,0.93098]
[1643827810832,1.43669189,2685.9,2685.1,0.8863222]
[1643827811036,0.89126782,2685.8,2685.1,0.8863222]
[1643827811234,0.70526782,2685.7,2685.1,0.8863222]
[1643827811731,0.00563051,2685.6,2685.1,0.8863222]
[1643827812531,0.70526782,2685.7,2685.1,0.8863222]
[1643827812731,0.70526782,2685.7,2684.9,2.79328]
[1643827812732,0.00563065,2685.5,2684.9,2.79328]
[1643827812933,0.00563065,2685.5,2684.3,0.1862]
[1643827812934,1.07108682,2685.4,2684.3,0.1862]
[1643827813133,2.537,2685.3,2684.3,0.1862]
[1643827813336,0.365819,2685.2,2683.8,0.1862]
[1643827813536,0.70526782,2684.9,2683.8,0.1862]
[1643827813732,0.70526782,2684.9,2683.7,6.99233436]
[1643827813733,0.14829532,2684.2,2683.7,6.99233436]
[1643827814010,0.14829532,2684.2,2683.8,0.91732838]
[1643827814199,0.1862,2684.4,2683.8,0.91732838]
[1643827814397,0.1862,2684.6,2683.8,0.91732838]
[1643827814801,0.179619,2684.5,2683.8,0.91732838]
[1643827815198,0.0056317,2684.3,2683.8,0.91732838]
[1643827815400,2.25518286,2684.3,2683.8,0.91732838]
[1643827815598,2.25518286,2684.3,2683.7,0.005633]
[1643827815998,2.25518286,2684.3,2683.4,0.1862]
[1643827815999,2.24955116,2684.3,2683.4,0.1862]
[1643827816499,0.00542208,2684.1,2683.7,0.8783062]
[1643827816898,0.00542208,2684.1,2683.7,0.00542292]
[1643827817102,0.18504108,2684.1,2683.7,0.00542292]
[1643827817306,0.7232,2684.0,2683.7,0.00542292]
[1643827817501,3.079619,2683.8,2683.7,0.00542292]
[1643827817731,2.9,2683.8,2683.7,0.00542281]
[1643827817933,4.09024965,2683.8,2683.7,0.00542281]
[1643827818736,4.09024965,2683.8,2683.6,0.00542284]
[1643827819532,2.429619,2683.7,2683.6,0.00542284]
[1643827819732,4.50957635,2683.7,2683.6,0.00542284]
[1643827819937,4.50957635,2683.7,2683.6,0.00226745]
[1643827820535,0.179619,2683.7,2683.6,0.00226745]
[1643827820736,2.629619,2683.7,2683.6,0.00226745]
[1643827820936,4.67418155,2683.7,2683.6,0.00226745]
[1643827821138,0.179619,2683.7,2683.0,0.69378121]
[1643827821337,2.27030119,2683.7,2682.9,0.93188]
[1643827821600,2.27030119,2683.7,2682.9,0.88188]
[1643827821797,2.27030119,2683.7,2682.8,0.1862]
[1643827821998,0.14868607,2683.3,2682.8,0.1862]
[1643827822198,0.14868607,2683.3,2682.6,0.1862]
[1643827822199,1.02469444,2683.2,2682.6,0.1862]
[1643827822599,0.179619,2683.2,2682.6,0.1862]
[1643827823202,2.179619,2683.2,2682.6,0.1862]
[1643827823397,2.179619,2683.2,2682.1,0.93224]
[1643827823398,0.7232,2683.1,2682.1,0.93224]
[1643827823599,0.7232,2683.1,2682.8,0.00557167]
[1643827824198,3.279619,2682.9,2682.8,0.00557167]
[1643827824399,0.179619,2682.9,2682.8,0.00557167]
[1643827824799,3.679619,2682.9,2682.8,0.00557162]
[1643827825236,6.17280966,2682.9,2682.8,0.00557162]
[1643827825632,8.2901926,2682.9,2682.8,0.00557162]
[1643827825931,9.17652945,2682.9,2682.7,0.00557171]
[1643827826133,6.15591125,2682.8,2682.7,0.00557171]
[1643827826333,6.69291125,2682.8,2682.7,0.00557171]
[1643827826541,6.69291125,2682.8,2682.7,7.171e-05]
[1643827826542,9.17253025,2682.8,2682.7,7.171e-05]
[1643827826736,23.94053025,2682.8,2682.7,7.171e-05]
[1643827826941,0.0008,2682.5,2680.7,0.1863]
[1643827827138,0.93295,2681.5,2680.7,0.1863]
[1643827827339,0.93295,2681.5,2680.4,0.1864]
[1643827827340,1.0,2681.3,2680.4,0.1864]
[1643827827537,1.14312,2681.5,2680.3,1.0774381]
[1643827827538,1.0,2680.9,2680.3,1.0774381]
[1643827827846,1.0,2680.4,2680.0,0.001]
[1643827828040,1.0,2680.4,2679.2,0.1865]
[1643827828041,5.5,2680.2,2679.2,0.1865]
[1643827828241,6.718,2680.0,2679.0,0.1865]
[1643827828438,6.718,2680.0,2678.0,31.82890658]
[1643827828439,0.15617643,2679.8,2678.8,0.1865]
[1643827828640,0.716619,2679.7,2678.4,0.1865]
[1643827828988,0.00790211,2679.6,2678.5,0.04149491]
[1643827829290,0.7235,2679.5,2678.5,0.04149491]
[1643827829487,0.14346168,2678.6,2678.5,0.04149491]
[1643827829689,0.14346168,2678.6,2678.2,0.1865]
[1643827829690,1.81157286,2678.6,2678.3,0.04263176]
[1643827829888,0.86008068,2678.6,2678.3,0.04263176]
[1643827830088,0.716619,2678.6,2678.3,0.04263176]
[1643827830490,0.537,2678.6,2678.3,0.04263176]
[1643827830787,0.537,2678.6,2678.3,0.04504951]
[1643827830989,0.537,2678.6,2678.3,0.97892733]
[1643827831188,0.537,2678.6,2678.4,0.04206333]
[1643827831989,0.537,2678.6,2678.4,0.04771196]
[1643827832740,0.19034983,2679.2,2678.4,0.04771196]
[1643827832741,0.1865,2679.2,2678.4,0.04771196]
[1643827832941,0.179619,2679.6,2678.5,0.1865]
[1643827833144,0.179619,2680.0,2678.6,0.02272519]
[1643827833338,0.179619,2679.7,2678.7,0.1865]
[1643827833538,0.14596156,2679.2,2678.7,0.23185806]
[1643827833741,0.14596156,2679.2,2678.8,0.91158652]
[1643827834043,0.14596156,2679.2,2678.8,0.005]
[1643827834241,0.14596156,2679.2,2678.7,0.22685806]
[1643827834439,0.7551164,2679.6,2678.8,0.00241753]
[1643827834639,0.179619,2679.7,2678.8,0.00241753]
[1643827835440,0.179619,2679.7,2678.7,0.22685806]
[1643827835644,0.179619,2679.7,2679.3,0.80242989]
[1643827836583,0.179619,2679.7,2678.9,0.1865]
[1643827836783,0.179619,2679.7,2679.4,0.00557051]
[1643827836982,0.179619,2679.7,2679.1,0.1865]
[1643827837583,0.179619,2679.9,2679.1,0.1865]
[1643827837790,0.179619,2679.9,2679.1,1.11961]
[1643827837986,0.179619,2679.9,2679.1,1.12961]
[1643827838190,0.179619,2679.9,2679.1,0.1865]
[1643827838586,0.179619,2679.9,2679.0,0.74635667]
[1643827838587,0.1949151,2679.5,2679.0,0.74635667]
[1643827838786,0.179619,2679.9,2679.1,0.1865]
[1643827839186,0.179619,2679.9,2679.3,0.00208323]
[1643827839790,0.19705816,2679.8,2679.5,0.77808798]
[1643827840090,0.19705816,2679.8,2679.3,0.00208323]
[1643827840338,0.1865,2680.1,2679.3,0.00208323]
[1643827840542,0.1131944,2681.1,2679.3,0.00208323]
[1643827840543,0.1865,2680.4,2679.4,0.448]
[1643827840742,0.179619,2680.7,2679.5,1.86579]
[1643827840939,0.179619,2680.7,2679.5,0.448]
[1643827841338,0.19356377,2680.2,2679.9,0.71468881]
[1643827841539,0.19356377,2680.2,2679.3,1.00208323]
[1643827841736,0.19356377,2680.2,2679.4,0.01]
[1643827841937,0.37318277,2680.2,2679.3,0.19182349]
[1643827842139,0.37318277,2680.2,2679.3,0.00532349]
[1643827842541,0.37318277,2680.2,2679.4,0.71518726]
[1643827842938,0.179619,2680.2,2679.4,0.71518726]
[1643827843139,0.179619,2680.4,2679.9,0.87197553]
[1643827843985,0.14384399,2680.2,2679.9,0.87197553]
[1643827844388,0.179619,2680.4,2679.9,0.87197553]
[1643827845587,0.17176247,2680.2,2679.9,0.87197553]
[1643827845785,0.1865,2680.5,2679.9,0.87197553]
[1643827845993,0.1865,2680.8,2679.9,0.87197553]
[1643827846191,0.1865,2680.9,2679.9,1.31997553]
[1643827846389,0.179619,2680.8,2680.0,0.1865]
[1643827846689,0.17479938,2680.7,2680.0,0.1865]
[1643827846887,0.17479938,2680.7,2679.9,1.31997553]
[1643827847086,0.17479938,2680.7,2679.9,0.87197553]
[1643827847740,0.179619,2680.6,2679.9,0.87197553]
[1643827849541,0.179619,2680.6,2679.9,1.03022145]
[1643827849746,0.00467002,2681.0,2679.9,1.33022145]
[1643827849941,0.00467002,2681.0,2680.0,0.01219477]
[1643827850143,0.0051814,2681.0,2680.0,0.01219477]
[1643827850343,0.1848004,2681.0,2680.0,0.01219477]
[1643827851046,0.17836991,2680.9,2680.5,0.69385846]
[1643827851243,0.18480067,2681.0,2680.5,0.69385846]
[1643827851516,0.00518167,2681.0,2680.5,0.69385846]
[1643827852509,0.00518195,2681.0,2680.5,0.69385846]
[1643827853714,0.00504224,2681.0,2680.1,0.1865]
[1643827853911,0.16772169,2680.7,2680.1,0.1865]
[1643827854610,0.00504224,2681.0,2680.1,0.1865]
[1643827854812,0.00504224,2681.0,2680.4,0.8657207]
[1643827855014,0.00504188,2681.0,2680.4,0.8657207]
[1643827855447,0.00504188,2681.0,2680.1,0.07726215]
[1643827855653,0.01261851,2680.3,2679.6,0.1865]
[1643827855849,0.366119,2680.2,2679.6,0.1865]
[1643827856048,0.37184019,2680.2,2679.6,0.1865]
[1643827856448,0.00572119,2680.2,2679.6,0.1865]
[1643827856846,0.17955331,2679.7,2679.6,0.1865]
[1643827857046,0.17955331,2679.7,2678.8,2.015]
[1643827857248,0.17955331,2679.7,2678.8,3.315]
[1643827857447,0.17955331,2679.7,2679.3,0.00506906]
[1643827857650,0.18534019,2680.2,2679.4,0.92663992]
[1643827858148,0.18534019,2680.2,2679.4,1.11313992]
[1643827858351,0.18534019,2680.2,2679.4,0.01]
[1643827858549,0.18534019,2680.2,2679.3,0.1865]
[1643827858754,0.16642943,2679.4,2679.3,0.1865]
[1643827858989,0.18534019,2680.2,2679.3,0.1865]
[1643827859190,1.08691826,2680.4,2679.0,0.1865]
[1643827859390,0.1865,2680.3,2679.6,0.74707639]
[1643827859790,1.08691826,2680.4,2679.6,0.74707639]
[1643827860190,0.179619,2680.4,2679.6,0.74707639]
[1643827860394,0.1865,2680.6,2679.7,0.00194467]
[1643827860593,0.00370766,2681.0,2679.8,0.448]
[1643827860791,0.00370766,2681.0,2679.9,0.99999999]
[1643827860992,0.00370766,2681.0,2680.0,0.1865]
[1643827861192,0.00568274,2680.1,2680.0,0.1865]
[1643827861404,0.17410549,2680.9,2680.1,5.5]
[1643827861590,0.17410549,2680.9,2680.2,0.6345]
[1643827861791,0.17410549,2680.9,2680.2,1.6345]
[1643827862191,0.17410549,2680.9,2680.3,0.00194467]
[1643827862392,0.17410549,2680.9,2680.3,0.93460467]
[1643827862594,1.09667275,2680.9,2680.3,0.93460467]
[1643827862845,0.17410549,2680.9,2680.3,0.93460467]
[1643827863346,0.179619,2681.1,2680.3,1.23460467]
[1643827863543,0.1865,2681.7,2680.3,1.23460467]
[1643827863544,2.30803069,2681.7,2680.3,1.23460467]
[1643827863745,2.4471247,2681.6,2680.9,0.68668987]
[1643827863949,1.58123085,2681.5,2680.9,0.68668987]
[1643827864144,1.58123085,2681.5,2680.9,0.98668987]
[1643827864345,0.179619,2682.1,2680.9,0.98668987]
[1643827864346,0.16786651,2681.4,2680.9,0.98668987]
[1643827864548,0.16786651,2681.4,2680.8,0.18834467]
[1643827865643,0.16786651,2681.4,2680.8,0.87305769]
[1643827865843,2.10059549,2681.9,2680.8,0.87305769]
[1643827865844,0.00568175,2681.2,2680.8,0.87305769]
[1643827866048,0.00568175,2681.2,2680.8,3.03791769]
[1643827866243,0.00568175,2681.2,2680.9,3.19900389]
[1643827866691,0.00568175,2681.2,2680.9,1.0]
[1643827866892,0.00568175,2681.2,2681.1,5.54460216]
[1643827867094,0.14551541,2682.0,2681.1,5.4]
[1643827867292,1.58093152,2681.9,2681.1,5.7]
[1643827867692,1.58093152,2681.9,2681.1,0.3]
[1643827867897,2.28395558,2681.8,2681.0,0.1864]
[1643827868093,1.58093152,2681.7,2680.9,0.1864]
[1643827868295,0.18304081,2681.5,2680.9,0.1864]
[1643827868493,1.58093152,2681.4,2680.8,2.17305769]
[1643827868694,0.00568139,2681.6,2680.8,2.17305769]
[1643827868695,1.58093152,2681.5,2680.8,2.17305769]
[1643827868894,0.00568139,2681.6,2680.8,2.17305769]
[1643827868895,1.58093152,2681.4,2680.8,0.98665769]
[1643827869099,1.58093152,2681.3,2680.8,0.98665769]
[1643827869299,1.58093152,2681.2,2680.8,0.30194467]
[1643827869498,0.91675906,2681.6,2680.8,0.30194467]
[1643827869499,1.58093152,2681.1,2680.8,0.3]
[1643827869696,1.58093152,2681.0,2680.5,0.4864]
[1643827869898,0.00568171,2681.3,2680.5,0.1864]
[1643827870099,1.58135594,2681.2,2680.6,0.00194467]
[1643827870341,1.58135594,2681.2,2680.8,0.77257886]
[1643827870840,0.00534292,2681.0,2680.6,0.00194467]
[1643827871042,1.58135594,2680.9,2680.6,0.00194467]
[1643827871348,0.00534292,2681.0,2680.6,0.93450467]
[1643827871648,1.58133425,2680.9,2680.6,0.93450467]
[1643827871842,1.58667729,2680.9,2680.6,0.93450467]
[1643827872041,1.58133425,2680.8,2680.6,0.78767033]
[1643827872944,0.00534308,2680.8,2680.6,0.78767033]
[1643827873547,0.00534308,2680.8,2680.6,2.02020033]
[1643827873991,0.00534308,2680.8,2680.7,5.69908946]
[1643827874490,0.00536336,2680.8,2680.7,5.69908946]
[1643827874688,0.00536336,2680.8,2680.7,6.69908946]
[1643827874890,0.00536336,2680.8,2680.7,5.69908946]
[1643827875089,0.00536336,2680.8,2680.7,6.69908946]
[1643827875490,0.1865,2681.7,2680.7,6.69908946]
[1643827875491,0.00536332,2680.9,2680.8,1.86478]
[1643827875890,0.00536332,2680.9,2680.8,8.66478]
[1643827876491,0.88952406,2681.8,2681.3,0.8991023]
[1643827876691,1.58116924,2681.7,2680.8,8.66478]
[1643827876893,1.58116924,2681.7,2680.9,0.3]
[1643827876894,2.2841933,2681.7,2680.9,0.3]
[1643827877091,1.58116924,2681.6,2680.9,0.3]
[1643827877292,0.88952406,2681.8,2681.1,0.93238]
[1643827877293,1.58116924,2681.5,2681.1,0.93238]
[1643827877490,0.70302406,2682.0,2681.2,0.93234]
[1643827877491,1.58116924,2681.7,2681.2,0.93234]
[1643827877735,1.58116924,2681.6,2681.1,0.47825997]
[1643827877939,0.00568162,2681.4,2681.1,0.47825997]
[1643827878138,1.58116924,2681.3,2681.1,0.47825997]
[1643827878335,0.00568162,2681.4,2681.2,3.1717035]
[1643827878737,0.00568162,2681.4,2681.2,4.1040435]
[1643827879140,0.00568157,2681.4,2681.2,2.0040435]
[1643827879339,0.00568157,2681.4,2681.2,2.3040435]
[1643827879541,0.00568157,2681.4,2681.2,2.2540435]
[1643827879738,0.00568157,2681.4,2681.2,3.2540435]
[1643827879938,0.00568157,2681.4,2681.2,2.2540435]
[1643827880137,0.00568157,2681.4,2681.2,2.10406589]
[1643827880338,0.00568157,2681.4,2681.2,1.85406589]
[1643827880743,1.58108295,2681.3,2681.2,1.85406589]
[1643827880938,0.00568157,2681.4,2681.2,1.85406589]
[1643827881608,0.00502249,2681.4,2681.2,0.93234]
[1643827881806,1.58113249,2681.3,2681.2,0.93234]
[1643827882014,1.58113249,2681.3,2680.8,2.05118]
[1643827882015,0.1864,2681.2,2680.8,0.1864]
[1643827882214,1.58113249,2681.1,2680.3,1.86513]
[1643827882605,1.58113249,2681.1,2680.6,0.91260473]
[1643827883906,0.00502282,2681.0,2680.6,0.91260473]
[1643827884207,1.58113249,2680.9,2680.6,0.91260473]
[1643827884811,0.00502282,2681.0,2680.6,2.14515473]
[1643827885008,0.00502282,2681.0,2680.7,0.1865]
[1643827885009,0.00493688,2680.9,2680.7,0.1865]
[1643827885246,0.94026083,2682.0,2681.5,0.93806079]
[1643827885247,2.1865,2681.9,2681.5,0.93806079]
[1643827885440,2.1865,2681.9,2680.9,7.2331]
[1643827885441,1.58107051,2681.8,2680.9,7.2331]
[1643827885651,1.58107051,2681.7,2681.1,0.14811726]
[1643827885843,1.58107051,2681.6,2681.1,0.14811726]
[1643827886041,2.0,2682.2,2681.2,0.93239]
[1643827886242,1.58094726,2682.1,2681.5,0.93226]
[1643827886440,1.58094726,2682.0,2681.5,0.93226]
[1643827886640,1.58094726,2681.9,2681.5,0.93226]
[1643827886840,1.58094726,2681.8,2681.5,1.93273047]
[1643827887040,1.58094726,2681.7,2681.5,1.93273047]
[1643827887245,0.96103483,2682.2,2681.5,1.21258232]
[1643827887444,1.58091355,2682.1,2681.5,1.21258232]
[1643827887641,1.58091355,2682.1,2681.7,0.93226]
[1643827888046,1.58091355,2682.1,2680.9,3.0298]
[1643827888047,0.71534912,2681.9,2680.9,3.0298]
[1643827888242,0.71534912,2681.9,2680.9,3.7255673]
[1643827888243,0.84938203,2681.6,2680.9,3.7255673]
[1643827888442,1.58091355,2681.5,2680.9,0.6957673]
[1643827889292,0.15086332,2681.4,2680.8,1.86478]
[1643827889493,0.15086332,2681.4,2680.7,0.1865]
[1643827889693,1.58091355,2681.3,2680.7,0.1865]
[1643827889893,2.46923827,2681.3,2680.7,0.1865]
[1643827890095,3.62644335,2681.2,2680.7,0.1865]
[1643827890291,0.88832472,2681.3,2680.7,0.1865]
[1643827890292,1.58091355,2681.1,2680.9,0.83530738]
[1643827890492,1.58091355,2681.0,2680.7,0.1865]
[1643827890691,1.58091355,2681.2,2680.7,0.1865]
[1643827891293,0.00568184,2681.1,2680.7,0.4865]
[1643827891494,0.00568184,2681.1,2680.7,0.1865]
[1643827891694,1.58129308,2681.0,2680.7,0.1865]
[1643827892295,1.58697501,2681.0,2680.7,0.1865]
[1643827892494,1.58129308,2680.9,2680.7,0.1865]
[1643827892754,0.15589108,2680.8,2680.4,0.1864]
[1643827892938,1.58129308,2680.7,2680.4,0.88525609]
[1643827893138,1.58129308,2680.7,2680.4,0.69885609]
[1643827893438,1.58129308,2680.7,2680.4,1.69885609]
[1643827893638,1.58129308,2680.7,2680.4,0.69885609]
[1643827893838,1.58129308,2680.7,2680.4,1.0]
[1643827894239,1.58129308,2680.7,2680.3,0.30696232]
[1643827894642,1.58129308,2680.7,2680.3,0.30696226]
[1643827894840,1.58129308,2680.7,2680.5,0.90213815]
[1643827895139,1.58148654,2680.6,2680.5,0.90213815]
[1643827895343,1.58148654,2680.6,2680.3,0.30696226]
[1643827895344,1.58148654,2680.6,2680.3,1.30696226]
[1643827895541,1.72891617,2681.2,2680.3,0.30194467]
[1643827895739,1.58148741,2681.1,2680.3,1.30194467]
[1643827895941,0.00501615,2681.0,2680.3,0.30696226]
[1643827896140,0.1625941,2680.8,2680.3,1.30696226]
[1643827896490,1.58148741,2680.7,2680.4,0.91221564]
[1643827896691,1.58148741,2680.9,2680.3,0.00696226]
[1643827896893,1.58148741,2680.9,2680.3,0.00194467]
[1643827896894,0.1865,2680.8,2680.3,0.00194467]
[1643827897097,0.70302406,2680.7,2680.3,0.00729841]
[1643827897291,0.1865,2680.6,2680.3,0.00729841]
[1643827897493,1.58148741,2680.5,2680.3,0.00729841]
[1643827897691,0.05937534,2679.8,2679.7,0.00194467]
[1643827897894,6.14736447,2680.4,2679.7,0.00194467]
[1643827897895,4.56587706,2680.4,2679.7,0.00194467]
[1643827898092,1.58195168,2680.3,2679.7,0.00194467]
[1643827898294,0.1865,2680.2,2679.9,0.02141743]
[1643827898491,1.58195168,2680.1,2679.9,0.02141743]
[1643827898891,1.58195168,2680.0,2679.9,0.02141743]
[1643827899092,1.58195168,2680.2,2679.9,0.02141743]
[1643827899291,2.06644518,2680.1,2679.4,0.00194467]
[1643827899493,2.06644518,2680.1,2679.4,0.01194467]
[1643827899494,1.58195168,2680.0,2679.4,0.01194467]
[1643827899891,2.52681293,2680.3,2679.4,0.01194467]
[1643827900092,1.58197756,2680.2,2679.4,0.01194467]
[1643827900339,2.07142857,2680.1,2679.4,0.01194467]
[1643827900543,1.58197756,2680.0,2679.4,0.01194467]
[1643827900741,1.58197756,2680.0,2679.7,0.00552469]
[1643827901039,2.91481779,2679.9,2679.7,0.00552469]
[1643827901245,3.87399259,2679.8,2679.7,0.00552469]
[1643827901442,4.06049259,2679.8,2679.7,0.00552469]
[1643827901943,4.06049259,2679.8,2679.7,0.00552474]
[1643827902342,4.06028408,2679.8,2679.7,0.00552474]
[1643827902743,4.07298412,2679.8,2679.7,0.00552474]
[1643827902945,8.77098412,2679.8,2679.7,0.00552474]
[1643827903145,6.65887841,2679.8,2679.6,0.00552478]
[1643827903343,5.88205937,2679.7,2679.6,0.00552478]
[1643827903643,8.62913371,2679.7,2679.6,0.00552478]
[1643827903843,8.80875271,2679.7,2679.6,2.478e-05]
[1643827904094,8.80875271,2679.7,2678.5,0.00194467]
[1643827904095,5.50648281,2679.6,2678.5,0.00194467]
[1643827904294,5.50967837,2679.5,2679.1,0.0208783]
[1643827904591,0.00848035,2679.3,2679.1,0.0208783]
[1643827904792,2.20967837,2679.2,2679.1,0.0208783]
[1643827904991,0.6345,2679.2,2679.1,0.0208783]
[1643827905190,0.1865,2679.2,2679.1,0.0208783]
[1643827905392,0.00848035,2679.3,2679.1,0.0208783]
[1643827905590,0.179619,2679.2,2678.7,0.00194467]
[1643827905794,1.76213954,2679.2,2678.7,0.00194467]
[1643827905990,0.179619,2679.2,2678.7,0.00194467]
[1643827907594,0.179619,2679.2,2678.6,0.04092649]
[1643827908044,2.43197855,2679.2,2678.6,0.04092649]
[1643827908245,0.179619,2679.2,2678.6,0.04092649]
[1643827908644,0.179619,2679.2,2678.5,0.84537432]
[1643827908846,0.179619,2679.2,2678.6,0.00194467]
[1643827909245,0.179619,2679.2,2678.8,0.00569055]
[1643827909447,0.00568935,2679.3,2678.8,0.00569055]
[1643827910048,0.16597637,2679.4,2678.8,0.00569055]
[1643827910049,1.23543979,2679.7,2678.8,0.93331]
[1643827910254,0.00568953,2679.3,2678.9,0.00763509]
[1643827911050,0.00568953,2679.3,2679.0,0.91024142]
[1643827911488,0.00568959,2679.3,2679.0,0.91593179]
[1643827911689,0.00568959,2679.3,2679.0,0.00569037]
[1643827912092,2.629619,2679.1,2679.0,0.00569037]
[1643827912490,0.00568959,2679.3,2679.0,0.00569037]
[1643827912689,0.179619,2679.3,2678.9,0.00194467]
[1643827912891,0.8793067,2679.2,2678.7,0.04230273]
[1643827913089,0.8793067,2679.2,2679.0,0.00521172]
[1643827913090,0.18630409,2679.1,2679.0,0.00521172]
[1643827913693,2.28630409,2679.1,2679.0,0.00521172]
[1643827913891,4.62714407,2679.1,2678.9,0.00501975]
[1643827914093,4.45852842,2679.0,2678.9,0.00501975]
[1643827914691,2.05852842,2679.0,2678.9,0.00501975]
[1643827914891,0.179619,2679.0,2678.9,0.00501975]
[1643827915092,2.27274585,2679.0,2678.8,0.00501983]
[1643827915744,0.179619,2679.0,2678.8,0.00501983]
[1643827915945,0.179619,2678.9,2678.7,0.04035806]